[Event "Early-Titled-Tuesday-Blitz-April-23-2024"]
[Site "Chess.com"]
[Date "2024.04.23"]
[Round "9"]
[White "HATilay"]
[Black "MyDream003"]
[Result "0-1"]
[WhiteElo "2651"]
[BlackElo "2823"]
[TimeControl "180+1"]
[EndTime "9:49:43 PDT"]
[Termination "MyDream003 won by checkmate"]

1. e4 {[%clk 0:03:00.9]} 1... c6 {[%clk 0:01:29.6]} 2. d4 {[%clk 0:03:00.4]}
2... d5 {[%clk 0:01:30.3]} 3. e5 {[%clk 0:03:01.1]} 3... Bf5 {[%clk 0:01:30.8]}
4. Bd3 {[%clk 0:03:00.9]} 4... Bxd3 {[%clk 0:01:31.2]} 5. Qxd3 {[%clk
0:03:01.8]} 5... e6 {[%clk 0:01:31.7]} 6. Ne2 {[%clk 0:03:02.2]} 6... Qa5+
{[%clk 0:01:32.2]} 7. Nbc3 {[%clk 0:03:02.7]} 7... Qa6 {[%clk 0:01:32.3]} 8. Qh3
{[%clk 0:03:02.8]} 8... Nd7 {[%clk 0:01:31.6]} 9. a4 {[%clk 0:03:03.1]} 9... Ne7
{[%clk 0:01:31.1]} 10. O-O {[%clk 0:03:03.4]} 10... Nf5 {[%clk 0:01:31]} 11. b3
{[%clk 0:02:53.5]} 11... Bb4 {[%clk 0:01:30.8]} 12. Bb2 {[%clk 0:02:51.7]} 12...
Bxc3 {[%clk 0:01:26]} 13. Nxc3 {[%clk 0:02:49]} 13... Nxd4 {[%clk 0:01:26.6]}
14. Qg4 {[%clk 0:02:32.7]} 14... Nf5 {[%clk 0:01:27]} 15. Rfe1 {[%clk
0:02:29.8]} 15... Qb6 {[%clk 0:01:21.3]} 16. Rad1 {[%clk 0:02:18.2]} 16... h5
{[%clk 0:01:18.9]} 17. Qf4 {[%clk 0:02:15.5]} 17... O-O-O {[%clk 0:01:14.9]} 18.
a5 {[%clk 0:02:12.4]} 18... Qc7 {[%clk 0:01:14]} 19. a6 {[%clk 0:02:06.8]} 19...
b6 {[%clk 0:01:14.2]} 20. Na4 {[%clk 0:02:03.8]} 20... g5 {[%clk 0:01:11.5]} 21.
Qd2 {[%clk 0:01:13.9]} 21... g4 {[%clk 0:01:09.6]} 22. c4 {[%clk 0:01:13.6]}
22... dxc4 {[%clk 0:01:07.5]} 23. Qc2 {[%clk 0:01:04.5]} 23... cxb3 {[%clk
0:00:57]} 24. Qxb3 {[%clk 0:01:04.1]} 24... b5 {[%clk 0:00:57.7]} 25. Nc3 {[%clk
0:00:51.6]} 25... Nb6 {[%clk 0:00:47.8]} 26. Ne4 {[%clk 0:00:48.5]} 26... Nc4
{[%clk 0:00:47.5]} 27. Rc1 {[%clk 0:00:43.2]} 27... Rd5 {[%clk 0:00:42.1]} 28.
Nd6+ {[%clk 0:00:37.1]} 28... Kd7 {[%clk 0:00:11]} 29. Nxc4 {[%clk 0:00:37.3]}
29... bxc4 {[%clk 0:00:10.8]} 30. Rxc4 {[%clk 0:00:36.1]} 30... Rb8 {[%clk
0:00:10.5]} 31. Qc2 {[%clk 0:00:35.8]} 31... Rb6 {[%clk 0:00:07.9]} 32. Ra4
{[%clk 0:00:24.5]} 32... Ke8 {[%clk 0:00:07]} 33. Qc1 {[%clk 0:00:21.8]} 33...
Kd7 {[%clk 0:00:04]} 34. Ba1 {[%clk 0:00:21.9]} 34... Rbb5 {[%clk 0:00:03.7]}
35. Qg5 {[%clk 0:00:20.6]} 35... Qd8 {[%clk 0:00:03.6]} 36. Qxh5 {[%clk
0:00:19.7]} 36... Qg8 {[%clk 0:00:04]} 37. Rc4 {[%clk 0:00:18.2]} 37... Rb6
{[%clk 0:00:04.2]} 38. Rec1 {[%clk 0:00:18.4]} 38... Qg6 {[%clk 0:00:04]} 39.
Qh8 {[%clk 0:00:17.5]} 39... Qg5 {[%clk 0:00:03.6]} 40. Qa8 {[%clk 0:00:16.3]}
40... Qd2 {[%clk 0:00:02.7]} 41. Qxa7+ {[%clk 0:00:16.4]} 41... Ke8 {[%clk
0:00:03.2]} 42. Qxb6 {[%clk 0:00:16.8]} 42... Qd1+ {[%clk 0:00:03.2]} 43. Rxd1
{[%clk 0:00:17.7]} 43... Rxd1# {[%clk 0:00:02.9]} 0-1

[Event "Early-Titled-Tuesday-Blitz-April-23-2024"]
[Site "Chess.com"]
[Date "2024.04.23"]
[Round "9"]
[White "jefferyx"]
[Black "mbojan"]
[Result "1-0"]
[WhiteElo "3108"]
[BlackElo "2923"]
[TimeControl "180+1"]
[EndTime "9:49:45 PDT"]
[Termination "jefferyx won by checkmate"]

1. b4 {[%clk 0:03:00.9]} 1... a6 {[%clk 0:03:00.9]} 2. e3 {[%clk 0:02:59.4]}
2... h6 {[%clk 0:02:55.7]} 3. Bb2 {[%clk 0:02:59.4]} 3... Nf6 {[%clk 0:02:56]}
4. Nf3 {[%clk 0:02:55.7]} 4... e6 {[%clk 0:02:55.7]} 5. a3 {[%clk 0:02:55.6]}
5... Be7 {[%clk 0:02:55]} 6. Rg1 {[%clk 0:02:53.1]} 6... d5 {[%clk 0:02:51.7]}
7. g4 {[%clk 0:02:53.1]} 7... Nbd7 {[%clk 0:02:48.5]} 8. h4 {[%clk 0:02:53.1]}
8... c5 {[%clk 0:02:34.6]} 9. g5 {[%clk 0:02:53]} 9... hxg5 {[%clk 0:02:34.9]}
10. hxg5 {[%clk 0:02:53.9]} 10... Nh5 {[%clk 0:02:35.5]} 11. Rh1 {[%clk
0:02:48.5]} 11... Rh7 {[%clk 0:02:27.7]} 12. g6 {[%clk 0:02:48.5]} 12... fxg6
{[%clk 0:02:26.7]} 13. Bd3 {[%clk 0:02:49.3]} 13... Nf8 {[%clk 0:02:22.9]} 14.
Ne5 {[%clk 0:02:49.3]} 14... Nf6 {[%clk 0:01:55.8]} 15. Rxh7 {[%clk 0:02:50.2]}
15... N6xh7 {[%clk 0:01:56.7]} 16. Qg4 {[%clk 0:02:49.6]} 16... Bf6 {[%clk
0:01:33.2]} 17. Bxg6+ {[%clk 0:02:49.4]} 17... Ke7 {[%clk 0:01:33.2]} 18. bxc5
{[%clk 0:02:40.9]} 18... Bd7 {[%clk 0:01:25.5]} 19. f4 {[%clk 0:02:03.8]} 19...
Rc8 {[%clk 0:01:23.2]} 20. Bd4 {[%clk 0:01:57]} 20... Nxg6 {[%clk 0:01:14.5]}
21. Qxg6 {[%clk 0:01:57.9]} 21... Qg8 {[%clk 0:01:14.6]} 22. Nc3 {[%clk
0:01:50.6]} 22... Nf8 {[%clk 0:01:14.2]} 23. Qg3 {[%clk 0:01:47]} 23... Bxe5
{[%clk 0:00:58.5]} 24. Bxe5 {[%clk 0:01:45.9]} 24... Rxc5 {[%clk 0:00:58.8]} 25.
f5 {[%clk 0:01:35.7]} 25... Kf7 {[%clk 0:00:45.7]} 26. fxe6+ {[%clk 0:01:35.8]}
26... Bxe6 {[%clk 0:00:46.6]} 27. O-O-O {[%clk 0:01:36]} 27... Nd7 {[%clk
0:00:41.3]} 28. Rf1+ {[%clk 0:01:28.1]} 28... Ke8 {[%clk 0:00:41.8]} 29. Ne2
{[%clk 0:01:22.6]} 29... d4 {[%clk 0:00:38.6]} 30. Bxd4 {[%clk 0:01:17.5]} 30...
Rc6 {[%clk 0:00:38.7]} 31. Nc3 {[%clk 0:01:12.7]} 31... g6 {[%clk 0:00:36.7]}
32. Rh1 {[%clk 0:01:10.2]} 32... Qf7 {[%clk 0:00:31.2]} 33. Rh8+ {[%clk
0:01:09.4]} 33... Nf8 {[%clk 0:00:31.7]} 34. Qe5 {[%clk 0:00:47.4]} 34... Qe7
{[%clk 0:00:21.9]} 35. Kb2 {[%clk 0:00:44.5]} 35... Bc8 {[%clk 0:00:07]} 36. Qf4
{[%clk 0:00:27.7]} 36... Bf5 {[%clk 0:00:04.9]} 37. e4 {[%clk 0:00:19.5]} 37...
Bc8 {[%clk 0:00:04.2]} 38. Nd5 {[%clk 0:00:19]} 38... Qf7 {[%clk 0:00:03.9]} 39.
Qe5+ {[%clk 0:00:12]} 39... Qe6 {[%clk 0:00:03.1]} 40. Nc7+ {[%clk 0:00:11.2]}
40... Rxc7 {[%clk 0:00:02.8]} 41. Qxc7 {[%clk 0:00:12.1]} 41... Qd7 {[%clk
0:00:01.3]} 42. Qxd7+ {[%clk 0:00:11.5]} 42... Bxd7 {[%clk 0:00:02.2]} 43. Bc5
{[%clk 0:00:11.7]} 43... Kf7 {[%clk 0:00:02.9]} 44. Rxf8+ {[%clk 0:00:11.7]}
44... Ke6 {[%clk 0:00:03.8]} 45. Bd4 {[%clk 0:00:11.2]} 45... Bc6 {[%clk
0:00:04.1]} 46. Rf6+ {[%clk 0:00:11.8]} 46... Ke7 {[%clk 0:00:04.4]} 47. d3
{[%clk 0:00:12.5]} 47... Bxe4 {[%clk 0:00:05.3]} 48. dxe4 {[%clk 0:00:12.8]}
48... g5 {[%clk 0:00:05.3]} 49. Rb6 {[%clk 0:00:13.3]} 49... a5 {[%clk
0:00:06.2]} 50. Rxb7+ {[%clk 0:00:13.4]} 50... Ke6 {[%clk 0:00:07.1]} 51. Rb6+
{[%clk 0:00:14.1]} 51... Kd7 {[%clk 0:00:08]} 52. Kc3 {[%clk 0:00:14.5]} 52...
g4 {[%clk 0:00:08.8]} 53. Kc4 {[%clk 0:00:15.2]} 53... g3 {[%clk 0:00:09.7]} 54.
Kd5 {[%clk 0:00:16]} 54... g2 {[%clk 0:00:10.1]} 55. Rb7+ {[%clk 0:00:16.6]}
55... Ke8 {[%clk 0:00:11]} 56. Ke6 {[%clk 0:00:16.8]} 56... g1=Q {[%clk
0:00:11.9]} 57. Rb8# {[%clk 0:00:16.9]} 1-0

[Event "Early-Titled-Tuesday-Blitz-April-23-2024"]
[Site "Chess.com"]
[Date "2024.04.23"]
[Round "9"]
[White "Fh2411"]
[Black "baki83"]
[Result "0-1"]
[WhiteElo "2567"]
[BlackElo "2888"]
[TimeControl "180+1"]
[EndTime "9:49:46 PDT"]
[Termination "baki83 won on time"]

1. d4 {[%clk 0:03:00.9]} 1... d5 {[%clk 0:02:54.6]} 2. Nf3 {[%clk 0:03:01.2]}
2... Nf6 {[%clk 0:02:54.1]} 3. Bf4 {[%clk 0:03:01.2]} 3... Bf5 {[%clk 0:02:53]}
4. c4 {[%clk 0:02:59.1]} 4... e6 {[%clk 0:02:53.3]} 5. Nc3 {[%clk 0:02:59.7]}
5... Bb4 {[%clk 0:02:52.4]} 6. Qb3 {[%clk 0:02:59.4]} 6... Nc6 {[%clk
0:02:52.2]} 7. a3 {[%clk 0:02:53.1]} 7... Bxc3+ {[%clk 0:02:51.8]} 8. bxc3
{[%clk 0:02:53]} 8... Na5 {[%clk 0:02:49.7]} 9. Qa4+ {[%clk 0:02:51]} 9... c6
{[%clk 0:02:50]} 10. c5 {[%clk 0:02:42.3]} 10... b5 {[%clk 0:02:44.2]} 11. Qd1
{[%clk 0:02:23.3]} 11... Ne4 {[%clk 0:02:36.1]} 12. Qc1 {[%clk 0:02:19.7]} 12...
Nb3 {[%clk 0:02:35]} 13. Qb2 {[%clk 0:02:18.4]} 13... Nxa1 {[%clk 0:02:34.9]}
14. Qxa1 {[%clk 0:02:19.3]} 14... Qa5 {[%clk 0:02:34.7]} 15. Bd2 {[%clk
0:02:19.4]} 15... O-O {[%clk 0:02:24.1]} 16. e3 {[%clk 0:02:17.7]} 16... Nxd2
{[%clk 0:02:23]} 17. Nxd2 {[%clk 0:02:17.7]} 17... Qc7 {[%clk 0:02:23]} 18. Be2
{[%clk 0:02:16.8]} 18... a5 {[%clk 0:02:22.2]} 19. O-O {[%clk 0:02:17.4]} 19...
e5 {[%clk 0:02:20.9]} 20. Qb2 {[%clk 0:02:01.2]} 20... Rfe8 {[%clk 0:02:19.5]}
21. h3 {[%clk 0:01:57.1]} 21... exd4 {[%clk 0:02:19.3]} 22. cxd4 {[%clk
0:01:57.2]} 22... h6 {[%clk 0:02:03.1]} 23. Rc1 {[%clk 0:01:54.4]} 23... Bg6
{[%clk 0:02:00.9]} 24. Bf1 {[%clk 0:01:46.3]} 24... Re6 {[%clk 0:01:50.9]} 25.
Ra1 {[%clk 0:01:44]} 25... Rae8 {[%clk 0:01:50]} 26. Qc3 {[%clk 0:01:42.3]}
26... Bh5 {[%clk 0:01:48.3]} 27. Nb3 {[%clk 0:01:40.3]} 27... Ra8 {[%clk
0:01:40.2]} 28. Nc1 {[%clk 0:01:38.8]} 28... Bg6 {[%clk 0:01:36.7]} 29. Ne2
{[%clk 0:01:36.6]} 29... Be4 {[%clk 0:01:32.8]} 30. Ng3 {[%clk 0:01:31.7]} 30...
Ree8 {[%clk 0:01:30.4]} 31. Ra2 {[%clk 0:01:29.8]} 31... b4 {[%clk 0:01:14.5]}
32. Qb3 {[%clk 0:00:59.6]} 32... bxa3 {[%clk 0:01:12.7]} 33. Qxa3 {[%clk
0:01:00.5]} 33... Bg6 {[%clk 0:01:07.9]} 34. Ne2 {[%clk 0:00:54.4]} 34... Reb8
{[%clk 0:01:07.1]} 35. Nc3 {[%clk 0:00:54.5]} 35... Bb1 {[%clk 0:00:53.3]} 36.
Rb2 {[%clk 0:00:48.3]} 36... Rxb2 {[%clk 0:00:51.3]} 37. Qxb2 {[%clk 0:00:49.2]}
37... Rb8 {[%clk 0:00:49.8]} 38. Qc1 {[%clk 0:00:47.6]} 38... Bf5 {[%clk
0:00:45.9]} 39. Na4 {[%clk 0:00:46.7]} 39... Rb1 {[%clk 0:00:44.9]} 40. Qd2
{[%clk 0:00:40.5]} 40... Qb7 {[%clk 0:00:21.7]} 41. e4 {[%clk 0:00:32]} 41...
Bxe4 {[%clk 0:00:19.8]} 42. Nc3 {[%clk 0:00:32.7]} 42... Ra1 {[%clk 0:00:17.7]}
43. f3 {[%clk 0:00:23.2]} 43... Bf5 {[%clk 0:00:13.2]} 44. Kf2 {[%clk
0:00:21.5]} 44... Qb4 {[%clk 0:00:10.6]} 45. Qe3 {[%clk 0:00:21]} 45... Be6
{[%clk 0:00:10.9]} 0-1

[Event "Early-Titled-Tuesday-Blitz-April-23-2024"]
[Site "Chess.com"]
[Date "2024.04.23"]
[Round "9"]
[White "ZachHKL"]
[Black "VirtualCoach"]
[Result "1-0"]
[WhiteElo "2290"]
[BlackElo "2007"]
[TimeControl "180+1"]
[EndTime "9:49:46 PDT"]
[Termination "ZachHKL won by checkmate"]

1. c4 {[%clk 0:02:37.8]} 1... Nf6 {[%clk 0:02:58.7]} 2. g3 {[%clk 0:02:38.2]}
2... g6 {[%clk 0:02:56.7]} 3. Bg2 {[%clk 0:02:38.6]} 3... Bg7 {[%clk 0:02:56.8]}
4. b3 {[%clk 0:02:39.1]} 4... O-O {[%clk 0:02:55.9]} 5. Bb2 {[%clk 0:02:39.3]}
5... c5 {[%clk 0:02:55.3]} 6. Nf3 {[%clk 0:02:39.5]} 6... d6 {[%clk 0:02:55.5]}
7. O-O {[%clk 0:02:39.9]} 7... e5 {[%clk 0:02:55.5]} 8. e3 {[%clk 0:02:39.5]}
8... Nc6 {[%clk 0:02:55.2]} 9. d4 {[%clk 0:02:38.8]} 9... exd4 {[%clk
0:02:50.1]} 10. exd4 {[%clk 0:02:38.1]} 10... Nd7 {[%clk 0:02:26.8]} 11. Qd2
{[%clk 0:02:35.2]} 11... cxd4 {[%clk 0:02:09.3]} 12. Nxd4 {[%clk 0:02:33.6]}
12... Nxd4 {[%clk 0:02:07.6]} 13. Bxd4 {[%clk 0:02:33.1]} 13... Ne5 {[%clk
0:02:05.1]} 14. Nc3 {[%clk 0:02:27.9]} 14... Bf5 {[%clk 0:01:59.5]} 15. f4
{[%clk 0:02:17.5]} 15... Nc6 {[%clk 0:01:46.1]} 16. Bxg7 {[%clk 0:02:13.2]}
16... Kxg7 {[%clk 0:01:47]} 17. Rad1 {[%clk 0:02:13.1]} 17... Qb6+ {[%clk
0:01:46.7]} 18. Kh1 {[%clk 0:02:12.3]} 18... Rad8 {[%clk 0:01:45.5]} 19. Nd5
{[%clk 0:02:08]} 19... Qc5 {[%clk 0:01:42.8]} 20. Qc3+ {[%clk 0:02:06.7]} 20...
f6 {[%clk 0:01:41.1]} 21. b4 {[%clk 0:02:05.5]} 21... Nxb4 {[%clk 0:01:33.7]}
22. Qxb4 {[%clk 0:02:03.6]} 22... Qxb4 {[%clk 0:01:24.6]} 23. Nxb4 {[%clk
0:02:04.5]} 23... Rc8 {[%clk 0:01:20.3]} 24. Rd4 {[%clk 0:02:01.2]} 24... b6
{[%clk 0:01:16.2]} 25. Re1 {[%clk 0:02:00.3]} 25... Rf7 {[%clk 0:01:15]} 26. Bd5
{[%clk 0:01:59.2]} 26... Rfc7 {[%clk 0:01:14.6]} 27. Na6 {[%clk 0:01:57.8]}
27... Rd7 {[%clk 0:01:11.1]} 28. Be6 {[%clk 0:01:56.1]} 28... Re8 {[%clk
0:01:06.3]} 29. Bxd7 {[%clk 0:01:45.7]} 29... Rxe1+ {[%clk 0:01:04.6]} 30. Kg2
{[%clk 0:01:45.8]} 30... Bxd7 {[%clk 0:01:05.5]} 31. Rxd6 {[%clk 0:01:45.7]}
31... Bf5 {[%clk 0:01:05.4]} 32. Kf2 {[%clk 0:01:37.9]} 32... Rc1 {[%clk
0:01:03.4]} 33. Rc6 {[%clk 0:01:36.4]} 33... Rc2+ {[%clk 0:00:57.7]} 34. Ke3
{[%clk 0:01:36.6]} 34... Rxa2 {[%clk 0:00:56.8]} 35. Nb4 {[%clk 0:01:36.8]}
35... Rxh2 {[%clk 0:00:55.3]} 36. Rc7+ {[%clk 0:01:36.2]} 36... Kh6 {[%clk
0:00:55.1]} 37. Rxa7 {[%clk 0:01:37.1]} 37... Rh3 {[%clk 0:00:49.8]} 38. Kf3
{[%clk 0:01:31.7]} 38... g5 {[%clk 0:00:49.3]} 39. fxg5+ {[%clk 0:01:29]} 39...
fxg5 {[%clk 0:00:50.2]} 40. Ra6 {[%clk 0:01:26.7]} 40... Rh1 {[%clk 0:00:33.3]}
41. Rxb6+ {[%clk 0:01:26.1]} 41... Bg6 {[%clk 0:00:33.8]} 42. c5 {[%clk
0:01:23]} 42... Rf1+ {[%clk 0:00:33.6]} 43. Ke2 {[%clk 0:01:21.4]} 43... Rc1
{[%clk 0:00:32.9]} 44. c6 {[%clk 0:01:21.3]} 44... Kh5 {[%clk 0:00:32.5]} 45.
Nd5 {[%clk 0:01:18.7]} 45... Kg4 {[%clk 0:00:30]} 46. c7 {[%clk 0:01:17]} 46...
Kxg3 {[%clk 0:00:24.8]} 47. Rb8 {[%clk 0:01:13.1]} 47... Be4 {[%clk 0:00:24.8]}
48. Kd2 {[%clk 0:01:04.1]} 48... Rc6 {[%clk 0:00:20.4]} 49. Rb3+ {[%clk
0:00:47.6]} 49... Kh4 {[%clk 0:00:15.8]} 50. Rb4 {[%clk 0:00:38.4]} 50... g4
{[%clk 0:00:10.3]} 51. Rxe4 {[%clk 0:00:37.4]} 51... Kg3 {[%clk 0:00:10.3]} 52.
Re3+ {[%clk 0:00:35.7]} 52... Kf2 {[%clk 0:00:09.5]} 53. Rc3 {[%clk 0:00:35]}
53... Rxc3 {[%clk 0:00:08.1]} 54. Nxc3 {[%clk 0:00:34.7]} 54... g3 {[%clk
0:00:08.6]} 55. c8=Q {[%clk 0:00:35.1]} 55... g2 {[%clk 0:00:09.3]} 56. Qf5+
{[%clk 0:00:35.6]} 56... Kg1 {[%clk 0:00:08.8]} 57. Ne2+ {[%clk 0:00:36.5]}
57... Kh1 {[%clk 0:00:08.8]} 58. Qh5# {[%clk 0:00:37.3]} 1-0

[Event "Early-Titled-Tuesday-Blitz-April-23-2024"]
[Site "Chess.com"]
[Date "2024.04.23"]
[Round "9"]
[White "AsselLesbekova"]
[Black "RianKapriaga"]
[Result "1-0"]
[WhiteElo "2446"]
[BlackElo "2306"]
[TimeControl "180+1"]
[EndTime "9:49:47 PDT"]
[Termination "AsselLesbekova won by resignation"]

1. e4 {[%clk 0:03:00.9]} 1... c6 {[%clk 0:02:59.6]} 2. d4 {[%clk 0:03:00.7]}
2... d5 {[%clk 0:03:00.1]} 3. e5 {[%clk 0:03:01.3]} 3... Bf5 {[%clk 0:02:59.4]}
4. Nd2 {[%clk 0:03:01.8]} 4... e6 {[%clk 0:02:58.3]} 5. Nb3 {[%clk 0:03:02]}
5... h6 {[%clk 0:02:56.5]} 6. Nf3 {[%clk 0:03:02.2]} 6... Nd7 {[%clk 0:02:54.9]}
7. Bd3 {[%clk 0:03:01.8]} 7... Bxd3 {[%clk 0:02:54.3]} 8. Qxd3 {[%clk
0:03:02.7]} 8... c5 {[%clk 0:02:52.3]} 9. dxc5 {[%clk 0:03:00.6]} 9... Qc7
{[%clk 0:02:44]} 10. O-O {[%clk 0:02:54.2]} 10... Bxc5 {[%clk 0:02:40.1]} 11.
Nxc5 {[%clk 0:02:53.1]} 11... Nxc5 {[%clk 0:02:41]} 12. Qb5+ {[%clk 0:02:52.6]}
12... Qc6 {[%clk 0:02:39.9]} 13. Qxc6+ {[%clk 0:02:52.2]} 13... bxc6 {[%clk
0:02:39.7]} 14. Be3 {[%clk 0:02:52.3]} 14... Nd7 {[%clk 0:02:38]} 15. b4 {[%clk
0:02:51]} 15... Ne7 {[%clk 0:02:35.6]} 16. c3 {[%clk 0:02:49.9]} 16... Ng6
{[%clk 0:02:35.1]} 17. Bd4 {[%clk 0:02:50.4]} 17... a5 {[%clk 0:02:26.3]} 18. a3
{[%clk 0:02:47.4]} 18... O-O {[%clk 0:02:25.3]} 19. Rfe1 {[%clk 0:02:45]} 19...
Ra6 {[%clk 0:02:19.4]} 20. Nd2 {[%clk 0:02:36]} 20... Rfa8 {[%clk 0:02:16.4]}
21. Nb3 {[%clk 0:02:35.8]} 21... axb4 {[%clk 0:02:09.2]} 22. axb4 {[%clk
0:02:36.2]} 22... Rxa1 {[%clk 0:02:08.7]} 23. Rxa1 {[%clk 0:02:37.1]} 23...
Rxa1+ {[%clk 0:02:07.6]} 24. Nxa1 {[%clk 0:02:38]} 24... Ngxe5 {[%clk
0:02:06.9]} 25. Nb3 {[%clk 0:02:35.9]} 25... Nc4 {[%clk 0:02:03.3]} 26. f4
{[%clk 0:02:33.2]} 26... f6 {[%clk 0:02:03]} 27. Kf2 {[%clk 0:02:33.4]} 27...
Kf7 {[%clk 0:02:01.9]} 28. Ke2 {[%clk 0:02:33.1]} 28... e5 {[%clk 0:02:01.7]}
29. fxe5 {[%clk 0:02:33.1]} 29... fxe5 {[%clk 0:02:02.6]} 30. Ba7 {[%clk
0:02:33.5]} 30... Ke6 {[%clk 0:02:00.2]} 31. Na5 {[%clk 0:02:28.4]} 31... Kd6
{[%clk 0:01:33.1]} 32. Bf2 {[%clk 0:02:19.3]} 32... Nxa5 {[%clk 0:01:27.6]} 33.
bxa5 {[%clk 0:02:20.2]} 33... Nb8 {[%clk 0:01:27.4]} 34. Bb6 {[%clk 0:02:14.6]}
34... c5 {[%clk 0:01:18.6]} 35. h4 {[%clk 0:02:01.8]} 35... h5 {[%clk
0:01:17.9]} 36. Kd3 {[%clk 0:01:56.9]} 36... Na6 {[%clk 0:01:04.6]} 37. Bd8
{[%clk 0:01:54.2]} 37... e4+ {[%clk 0:01:01.9]} 38. Ke3 {[%clk 0:01:53.3]} 38...
Ke5 {[%clk 0:01:00.8]} 39. Bb6 {[%clk 0:01:52.6]} 39... g6 {[%clk 0:00:55.4]}
40. g3 {[%clk 0:01:31.1]} 40... Kf5 {[%clk 0:00:55.1]} 41. Bd8 {[%clk
0:01:26.5]} 41... Kg4 {[%clk 0:00:53.5]} 42. c4 {[%clk 0:01:27]} 42... dxc4
{[%clk 0:00:47.2]} 43. Kxe4 {[%clk 0:01:26.4]} 43... Kxg3 {[%clk 0:00:46.3]} 44.
Kd5 {[%clk 0:01:22.4]} 44... c3 {[%clk 0:00:45.5]} 45. Kc6 {[%clk 0:01:14.4]}
45... c2 {[%clk 0:00:42]} 46. Bg5 {[%clk 0:01:14.9]} 46... c1=Q {[%clk 0:00:33]}
47. Bxc1 {[%clk 0:01:13.8]} 47... Kxh4 {[%clk 0:00:33.5]} 48. Be3 {[%clk
0:01:05.1]} 48... Kg3 {[%clk 0:00:30.1]} 49. Kb7 {[%clk 0:01:05.5]} 49... Kf3
{[%clk 0:00:21.6]} 50. Bg1 {[%clk 0:01:04]} 50... c4 {[%clk 0:00:20.2]} 51. Kxa6
{[%clk 0:01:00.2]} 51... c3 {[%clk 0:00:20.2]} 52. Bd4 {[%clk 0:01:00.3]} 52...
c2 {[%clk 0:00:19.5]} 53. Bb2 {[%clk 0:01:00.8]} 53... h4 {[%clk 0:00:19.1]} 54.
Kb6 {[%clk 0:00:57.1]} 54... h3 {[%clk 0:00:19.3]} 55. a6 {[%clk 0:00:57.5]}
55... h2 {[%clk 0:00:19.6]} 56. a7 {[%clk 0:00:58.1]} 56... Kf2 {[%clk
0:00:11.1]} 57. a8=Q {[%clk 0:00:57.6]} 57... Kg1 {[%clk 0:00:09.5]} 58. Bd4+
{[%clk 0:00:57.5]} 58... Kf1 {[%clk 0:00:06.4]} 59. Qh1+ {[%clk 0:00:57.9]}
59... Ke2 {[%clk 0:00:07]} 60. Qxh2+ {[%clk 0:00:56.5]} 60... Kd3 {[%clk
0:00:07.9]} 61. Bb2 {[%clk 0:00:55.9]} 1-0

[Event "Early-Titled-Tuesday-Blitz-April-23-2024"]
[Site "Chess.com"]
[Date "2024.04.23"]
[Round "9"]
[White "giovannibrandao7"]
[Black "lupta_robin"]
[Result "1-0"]
[WhiteElo "2365"]
[BlackElo "2573"]
[TimeControl "180+1"]
[EndTime "9:49:50 PDT"]
[Termination "giovannibrandao7 won on time"]

1. e4 {[%clk 0:03:00.9]} 1... c5 {[%clk 0:02:58.7]} 2. Nf3 {[%clk 0:03:00.8]}
2... d6 {[%clk 0:02:59]} 3. d4 {[%clk 0:03:00.6]} 3... cxd4 {[%clk 0:02:57.8]}
4. Nxd4 {[%clk 0:03:01.5]} 4... Nf6 {[%clk 0:02:55.1]} 5. Nc3 {[%clk 0:03:02]}
5... a6 {[%clk 0:02:53.6]} 6. Be3 {[%clk 0:03:01.8]} 6... e5 {[%clk 0:02:53]} 7.
Nb3 {[%clk 0:03:01.4]} 7... Be6 {[%clk 0:02:52.7]} 8. f3 {[%clk 0:03:01.6]} 8...
Be7 {[%clk 0:02:47.1]} 9. Qd2 {[%clk 0:03:01.8]} 9... h5 {[%clk 0:02:43.2]} 10.
Nd5 {[%clk 0:02:59.7]} 10... Nxd5 {[%clk 0:02:41]} 11. exd5 {[%clk 0:03:00.6]}
11... Bf5 {[%clk 0:02:39.6]} 12. c4 {[%clk 0:03:00.3]} 12... Nd7 {[%clk
0:02:38.8]} 13. Bd3 {[%clk 0:02:56.2]} 13... Bxd3 {[%clk 0:02:33.4]} 14. Qxd3
{[%clk 0:02:57.1]} 14... g6 {[%clk 0:02:26]} 15. O-O {[%clk 0:02:56.8]} 15...
Qc7 {[%clk 0:02:03.3]} 16. Rac1 {[%clk 0:02:51]} 16... a5 {[%clk 0:01:52]} 17.
Rfd1 {[%clk 0:02:29.1]} 17... a4 {[%clk 0:01:41.9]} 18. Nd2 {[%clk 0:02:29.1]}
18... Nc5 {[%clk 0:01:42.3]} 19. Qe2 {[%clk 0:02:27.7]} 19... f5 {[%clk
0:01:39.8]} 20. Nb1 {[%clk 0:02:28.1]} 20... Bf6 {[%clk 0:01:34.6]} 21. Nc3
{[%clk 0:02:27.4]} 21... Kf7 {[%clk 0:01:33.1]} 22. Nb5 {[%clk 0:02:27.1]} 22...
Qb6 {[%clk 0:01:33.6]} 23. b4 {[%clk 0:01:59]} 23... axb3 {[%clk 0:01:33.3]} 24.
axb3 {[%clk 0:01:59.9]} 24... Qd8 {[%clk 0:01:10.1]} 25. Bxc5 {[%clk 0:01:47.7]}
25... dxc5 {[%clk 0:01:09.9]} 26. d6 {[%clk 0:01:47.3]} 26... Qd7 {[%clk
0:01:06.7]} 27. Qd2 {[%clk 0:01:37.1]} 27... Qc6 {[%clk 0:00:46.5]} 28. Ra1
{[%clk 0:00:49.7]} 28... Rhd8 {[%clk 0:00:42.7]} 29. Rxa8 {[%clk 0:00:47.7]}
29... Rxa8 {[%clk 0:00:43.6]} 30. Qd5+ {[%clk 0:00:35.4]} 30... Qxd5 {[%clk
0:00:42.6]} 31. Rxd5 {[%clk 0:00:36.3]} 31... b6 {[%clk 0:00:37.5]} 32. d7
{[%clk 0:00:29.6]} 32... Ke7 {[%clk 0:00:33.8]} 33. Na7 {[%clk 0:00:16.7]} 33...
Ke6 {[%clk 0:00:18.9]} 34. Nc8 {[%clk 0:00:07.9]} 34... Bd8 {[%clk 0:00:16.2]}
35. Rd6+ {[%clk 0:00:06.1]} 35... Kf7 {[%clk 0:00:16.6]} 36. Nxb6 {[%clk
0:00:05.7]} 36... Rb8 {[%clk 0:00:17.1]} 37. Nd5 {[%clk 0:00:03.6]} 37... Rxb3
{[%clk 0:00:17]} 38. Rc6 {[%clk 0:00:04.3]} 38... Rb7 {[%clk 0:00:16.1]} 39.
Rxc5 {[%clk 0:00:03.9]} 39... Rxd7 {[%clk 0:00:16.5]} 40. Rc8 {[%clk 0:00:03.2]}
40... Ke6 {[%clk 0:00:13.5]} 41. Kf2 {[%clk 0:00:03.7]} 41... g5 {[%clk
0:00:11.7]} 42. Rc6+ {[%clk 0:00:04.1]} 42... Rd6 {[%clk 0:00:11.8]} 43. Rxd6+
{[%clk 0:00:04.2]} 43... Kxd6 {[%clk 0:00:12.7]} 44. Ke3 {[%clk 0:00:04.7]}
44... Kc5 {[%clk 0:00:11.9]} 45. Kd3 {[%clk 0:00:05.3]} 45... g4 {[%clk
0:00:03.1]} 46. Ne3 {[%clk 0:00:05.2]} 1-0